bitfinex/quotes_ETHUSD_20241018
["timestamp","ask_amount","ask_price","bid_price","bid_amount"]
[1729287998073,0.37697267,2645.1,2644.7,0.8269]
[1729287998408,0.28290457,2645.0,2644.7,0.8269]
[1729287998560,0.37697267,2645.1,2644.7,0.8269]
[1729287998855,0.28290856,2645.0,2644.7,0.8269]
[1729287999062,0.37697267,2645.1,2644.7,0.8269]
[1729287999580,0.28292824,2645.0,2644.7,0.8269]
[1729287999887,0.37697267,2645.1,2644.7,0.8269]
[1729288000060,0.28291418,2645.0,2644.7,0.8269]
[1729288000260,0.37697267,2645.1,2644.7,0.8269]
[1729288000575,0.28292766,2645.0,2644.7,0.8269]
[1729288000775,0.37697267,2645.1,2644.7,0.8269]
[1729288000978,0.28292605,2645.0,2644.7,0.8269]
[1729288001179,0.37697267,2645.1,2644.7,0.8269]
[1729288001704,0.28294096,2645.0,2644.7,0.8269]
[1729288002006,1.2677076,2645.3,2644.7,0.8269]
[1729288002007,0.37697267,2645.1,2644.7,0.8269]
[1729288002501,0.28294168,2645.0,2644.7,0.8269]
[1729288002702,0.37697267,2645.1,2644.7,0.8269]
[1729288002901,0.28296979,2645.0,2644.7,0.8269]
[1729288003085,0.37697267,2645.1,2644.7,0.8269]
[1729288003291,0.28297022,2645.0,2644.7,0.8269]
[1729288003508,0.37697267,2645.1,2644.7,0.8269]
[1729288003807,0.37697267,2645.2,2644.7,0.8269]
[1729288004005,0.2829658,2645.1,2644.7,0.8269]
[1729288004306,0.28298937,2645.0,2644.7,0.8269]
[1729288004468,0.37697267,2645.1,2644.7,0.8269]
[1729288004829,0.28299135,2645.0,2644.7,0.8269]
[1729288004959,0.37697267,2645.1,2644.7,0.8269]
[1729288005181,0.28299233,2645.0,2644.7,0.8269]
[1729288005520,0.37697267,2645.1,2644.7,0.8269]
[1729288005707,0.28301529,2645.0,2644.7,0.8269]
[1729288005910,0.37697267,2645.1,2644.7,0.8269]
[1729288006286,0.28301344,2645.0,2644.7,0.8269]
[1729288006482,0.37697267,2645.1,2644.7,0.8269]
[1729288006794,0.2830128,2645.0,2644.7,0.8269]
[1729288006996,0.37697267,2645.1,2644.7,0.8269]
[1729288007193,0.28301504,2645.0,2644.7,0.8269]
[1729288007387,0.37697267,2645.1,2644.7,0.8269]
[1729288007586,0.28301898,2645.0,2644.7,0.8269]
[1729288007925,0.37697267,2645.1,2644.7,0.8269]
[1729288008113,0.28301951,2645.0,2644.7,0.8269]
[1729288008294,0.37697267,2645.1,2644.7,1.05265399]
[1729288008483,0.28301107,2645.0,2644.7,1.05265399]
[1729288008685,0.37697267,2645.1,2644.7,1.05265399]
[1729288008911,0.28301839,2645.0,2644.7,1.05265399]
[1729288009106,0.37697267,2645.1,2644.7,1.05265399]
[1729288009324,0.28302007,2645.0,2644.7,1.05265399]
[1729288009482,0.37697267,2645.1,2644.7,1.05265399]
[1729288009683,0.28302396,2645.0,2644.8,0.55]
[1729288009926,0.37697267,2645.1,2644.9,0.7671]
[1729288010286,0.28301479,2645.0,2644.9,0.7671]
[1729288010485,0.37697267,2645.2,2644.9,0.7671]
[1729288010686,0.35276313,2645.1,2644.9,0.7671]
[1729288011010,0.06974575,2645.1,2644.9,0.7671]
[1729288014225,0.06974575,2645.1,2644.7,0.22575399]
[1729288014226,0.28306185,2645.0,2644.7,0.99905399]
[1729288014534,0.44671842,2645.1,2644.7,0.99905399]
[1729288014751,0.2830714,2645.0,2644.7,0.7733]
[1729288015025,0.44671842,2645.1,2644.7,0.7733]
[1729288015235,0.28306931,2645.0,2644.7,0.7733]
[1729288015442,0.44671842,2645.1,2644.7,0.7733]
[1729288015740,0.28307766,2645.0,2644.7,0.7733]
[1729288015912,0.44671842,2645.1,2644.7,0.7733]
[1729288016242,0.28307745,2645.0,2644.7,0.7733]
[1729288016547,0.44671842,2645.1,2644.7,0.7733]
[1729288016744,0.28309412,2645.0,2644.7,0.7733]
[1729288017048,0.44671842,2645.1,2644.7,0.7733]
[1729288017205,0.28309403,2645.0,2644.7,0.7733]
[1729288017400,0.44671842,2645.1,2644.7,0.7733]
[1729288017606,0.28311339,2645.0,2644.7,0.7733]
[1729288017844,0.44671842,2645.1,2644.7,0.7733]
[1729288018139,0.28311349,2645.0,2644.7,0.7733]
[1729288018354,0.28313531,2645.0,2644.7,0.7733]
[1729288018505,0.44671842,2645.1,2644.7,0.7733]
[1729288018710,0.28313917,2645.0,2644.7,0.7733]
[1729288019009,0.44671842,2645.1,2644.7,0.7733]
[1729288019209,0.2831393,2645.0,2644.7,0.7733]
[1729288019447,0.44671842,2645.1,2644.7,0.7733]
[1729288019752,0.28316923,2645.0,2644.7,0.7733]
[1729288019913,0.44671842,2645.1,2644.7,0.7733]
[1729288020121,0.28316933,2645.0,2644.7,0.7733]
[1729288020353,0.44671842,2645.1,2644.7,0.7733]
[1729288020575,0.2831986,2645.0,2644.7,0.7733]
[1729288020778,0.44671842,2645.1,2644.7,0.7733]
[1729288020977,0.2831986,2645.0,2644.7,0.7733]
[1729288021354,0.44671842,2645.1,2644.7,0.7733]
[1729288021558,0.28323766,2645.0,2644.7,0.7733]
[1729288021872,0.28323766,2644.9,2644.7,0.7733]
[1729288022046,0.44671842,2645.1,2644.7,0.7733]
[1729288022246,0.66021049,2645.0,2644.7,0.7733]
[1729288022446,0.28323782,2644.9,2644.7,0.7733]
[1729288022756,0.37697267,2645.0,2644.7,0.7733]
[1729288022940,0.28329452,2644.9,2644.7,0.7733]
[1729288023140,0.37697267,2645.0,2644.7,0.7733]
[1729288023381,0.28330479,2644.9,2644.7,0.7733]
[1729288023584,0.37697267,2645.0,2644.7,0.7733]
[1729288023741,0.28330581,2644.9,2644.7,0.7733]
[1729288023937,0.37697267,2645.0,2644.7,0.7733]
[1729288024138,0.28330644,2644.9,2644.7,0.7733]
[1729288024382,0.37697267,2645.0,2644.7,0.7733]
[1729288024585,0.28330589,2644.9,2644.7,0.7733]
[1729288024736,0.37697267,2645.0,2644.7,0.7733]
[1729288024941,0.28330618,2644.9,2644.7,0.7733]
[1729288025256,0.37697267,2645.0,2644.7,0.7733]
[1729288025881,0.28330423,2644.9,2644.7,0.7733]
[1729288026043,0.37697267,2645.0,2644.7,0.7733]
[1729288026247,0.2833056,2644.9,2644.7,0.7733]
[1729288026441,0.37697267,2645.0,2644.7,0.7733]
[1729288026843,0.28330513,2644.9,2644.7,0.7733]
[1729288027043,0.37697267,2645.0,2644.7,0.7733]
[1729288027344,0.28330625,2644.9,2644.7,0.7733]
[1729288027544,0.37697267,2645.0,2644.7,0.7733]
[1729288027785,0.283306,2644.9,2644.7,0.7733]
[1729288027970,0.37697267,2645.0,2644.7,0.7733]
[1729288028169,0.28330568,2644.9,2644.7,0.7733]
[1729288028389,0.37697267,2645.0,2644.7,0.7733]
[1729288028607,0.28330592,2644.9,2644.7,0.7733]
[1729288028896,0.37697267,2645.0,2644.7,0.7733]
[1729288029097,0.28330591,2644.9,2644.7,0.7733]
[1729288029298,0.37697267,2645.0,2644.7,0.7733]
[1729288029596,0.28330535,2644.9,2644.7,0.7733]
[1729288029795,0.37697267,2645.0,2644.7,0.7733]
[1729288029996,0.28330585,2644.9,2644.7,0.7733]
[1729288030161,0.37697267,2645.0,2644.7,0.7733]
[1729288030363,0.28330577,2644.9,2644.7,0.7733]
[1729288030660,0.37697267,2645.0,2644.7,0.7733]
[1729288030863,0.28330579,2644.9,2644.7,0.7733]
[1729288031163,0.37697267,2645.0,2644.7,0.7733]
[1729288031463,0.28330751,2644.9,2644.7,0.7733]
[1729288031657,0.37697267,2645.0,2644.7,0.7733]
[1729288031873,0.28330601,2644.9,2644.7,0.7733]
[1729288032112,0.37697267,2645.0,2644.7,0.7733]
[1729288032259,0.28330801,2644.9,2644.7,0.7733]
[1729288032594,0.37697267,2645.0,2644.7,0.7733]
[1729288032796,0.28330659,2644.9,2644.7,0.7733]
[1729288032970,0.37697267,2645.0,2644.7,0.7733]
[1729288033168,0.28330665,2644.9,2644.7,0.7733]
[1729288033377,0.37697267,2645.0,2644.7,0.7733]
[1729288033564,0.28330766,2644.9,2644.7,0.7733]
[1729288033899,0.37697267,2645.0,2644.7,0.7733]
[1729288034108,0.28330759,2644.9,2644.7,0.7733]
[1729288034275,0.37697267,2645.0,2644.7,0.7733]
[1729288034464,0.28330789,2644.9,2644.7,0.7733]
[1729288034664,0.37697267,2645.0,2644.7,0.7733]
[1729288034857,0.28331068,2644.9,2644.7,0.7733]
[1729288035061,0.37697267,2645.0,2644.7,0.173994]
[1729288035260,0.28331162,2644.9,2644.7,0.173994]
[1729288035566,0.75906991,2645.0,2644.7,0.173994]
[1729288035793,0.28331112,2644.9,2644.7,0.173994]
[1729288035998,0.75906991,2645.0,2644.7,0.173994]
[1729288036301,0.28331274,2644.9,2644.7,0.173994]
[1729288036517,0.75906991,2645.0,2644.7,0.173994]
[1729288036807,0.28331134,2644.9,2644.7,0.173994]
[1729288036961,0.75906991,2645.0,2644.7,0.173994]
[1729288037160,0.28331046,2644.9,2644.7,0.173994]
[1729288037401,0.75906991,2645.0,2644.7,0.173994]
[1729288037604,0.2833101,2644.9,2644.7,0.173994]
[1729288037902,0.75906991,2645.0,2644.7,0.173994]
[1729288038104,0.2833101,2644.9,2644.7,0.173994]
[1729288038261,0.75906991,2645.0,2644.7,0.173994]
[1729288038694,0.28331153,2644.9,2644.7,0.173994]
[1729288038898,0.75906991,2645.0,2644.7,0.173994]
[1729288039101,0.28331148,2644.9,2644.7,0.173994]
[1729288039305,0.75906991,2645.0,2644.7,0.173994]
[1729288039501,0.28331138,2644.9,2644.7,0.173994]
[1729288039706,0.75906991,2645.0,2644.7,0.173994]
[1729288039907,0.48511985,2644.9,2644.7,0.173994]
[1729288040200,0.20180846,2644.9,2644.7,0.173994]
[1729288044056,0.37697267,2645.0,2644.7,0.173994]
[1729288044256,0.2833156,2644.9,2644.7,0.173994]
[1729288044457,0.37697267,2645.0,2644.7,0.173994]
[1729288044752,0.28331765,2644.9,2644.7,0.173994]
[1729288045063,0.37697267,2645.0,2644.7,0.173994]
[1729288045256,0.28332643,2644.9,2644.7,0.173994]
[1729288045464,0.75906991,2645.0,2644.7,0.173994]
[1729288045758,0.28334859,2644.9,2644.7,0.173994]
[1729288045965,0.28334859,2644.8,2644.7,0.173994]
[1729288046656,0.75906991,2645.0,2644.7,0.173994]
[1729288046854,0.48515545,2644.9,2644.7,0.173994]
[1729288047365,0.28334699,2644.8,2644.7,0.173994]
[1729288051090,0.20180846,2644.9,2644.7,0.173994]
[1729288051263,0.56669617,2644.8,2644.7,0.173994]
[1729288053284,0.28334708,2644.8,2644.7,0.173994]
[1729288053487,0.56669847,2644.8,2644.7,0.173994]
[1729288055615,0.56669764,2644.8,2644.7,0.173994]
[1729288057710,0.56670362,2644.8,2644.7,0.173994]
[1729288057907,0.28335654,2644.8,2644.7,0.173994]
[1729288058404,0.20180846,2644.9,2644.7,0.173994]
[1729288058601,0.28335785,2644.8,2644.7,0.173994]
[1729288059206,0.20180846,2644.9,2644.7,0.173994]
[1729288059417,0.28336903,2644.8,2644.7,0.173994]
[1729288059905,0.20180846,2644.9,2644.7,0.173994]
[1729288060810,0.2833718,2644.8,2644.7,0.173994]
[1729288060985,0.20180846,2644.9,2644.7,0.173994]
[1729288062677,0.37697267,2645.0,2644.7,0.173994]
[1729288062877,0.28336432,2644.9,2644.7,0.173994]
[1729288063220,0.37697267,2645.0,2644.7,0.173994]
[1729288063514,0.28337339,2644.9,2644.7,0.173994]
[1729288063813,0.37697267,2645.0,2644.7,0.173994]
[1729288063976,0.28337336,2644.9,2644.7,0.173994]
[1729288064176,0.75906991,2645.0,2644.7,0.173994]
[1729288064377,0.28337232,2644.9,2644.7,0.173994]
[1729288064591,0.75906991,2645.0,2644.7,0.173994]
[1729288065553,0.28337087,2644.9,2644.7,0.173994]
[1729288065711,0.75906991,2645.0,2644.7,0.173994]
[1729288066049,0.48518049,2644.9,2644.7,0.173994]
[1729288066251,0.20180846,2644.9,2644.7,0.173994]
[1729288078005,0.44671842,2645.1,2644.7,0.173994]
[1729288078184,0.28335675,2645.0,2644.7,0.173994]
[1729288078368,0.28335675,2644.9,2644.7,0.173994]
[1729288078693,0.44671842,2645.1,2644.7,0.173994]
[1729288078877,0.28334965,2645.0,2644.7,0.173994]
[1729288079078,0.28334965,2644.9,2644.7,0.173994]
[1729288079274,0.25186371,2645.0,2644.7,0.173994]
[1729288079496,0.28334339,2644.9,2644.7,0.173994]
[1729288079790,0.25186371,2645.0,2644.7,0.173994]
[1729288079993,0.28334319,2644.9,2644.7,0.173994]
[1729288080195,0.25186371,2645.0,2644.7,0.173994]
[1729288080363,0.28334218,2644.9,2644.7,0.173994]
[1729288080602,0.25186371,2645.0,2644.7,0.173994]
[1729288080823,0.28334179,2644.9,2644.7,0.173994]
[1729288081121,0.25186371,2645.0,2644.7,0.173994]
[1729288081321,0.28333508,2644.9,2644.7,0.173994]
[1729288081491,0.25186371,2645.0,2644.7,0.173994]
[1729288081692,0.28333488,2644.9,2644.7,0.173994]
[1729288081916,0.25186371,2645.0,2644.7,0.173994]
[1729288082192,0.28333484,2644.9,2644.7,0.173994]
[1729288082422,0.25186371,2645.0,2644.7,0.173994]
[1729288082630,0.28332868,2644.9,2644.7,0.173994]
[1729288082926,0.25186371,2645.0,2644.7,0.173994]
[1729288096748,0.2833091,2644.9,2644.7,0.173994]
[1729288096915,0.25186371,2645.0,2644.7,0.173994]
[1729288100843,0.06648639,2644.9,2644.7,0.173994]
[1729288112555,0.28336653,2644.8,2644.7,0.173994]
[1729288113080,0.06648639,2644.9,2644.7,0.173994]
[1729288113777,0.26192014,2644.9,2644.7,0.173994]
[1729288128796,0.06648639,2644.9,2644.7,0.173994]
[1729288132773,0.28333692,2644.8,2644.7,0.723994]
[1729288132971,0.06648639,2644.9,2644.7,0.723994]
[1729288135997,0.28333663,2644.8,2644.7,0.723994]
[1729288136590,0.06648639,2644.9,2644.7,0.723994]
[1729288150023,0.06648639,2644.9,2644.7,0.173994]
[1729288153395,0.06648639,2644.9,2644.7,0.723994]
[1729288154040,0.06648639,2644.9,2644.8,0.55]
[1729288154337,0.34987148,2644.9,2644.8,0.55]
[1729288154893,0.34987148,2644.9,2644.8,0.84328443]
[1729288156554,0.34987712,2644.9,2644.8,0.84328443]
[1729288159951,0.98361752,2645.1,2644.8,0.84328443]
[1729288160115,1.42724854,2645.1,2644.8,0.84328443]
[1729288161721,0.44363102,2645.1,2644.8,0.84328443]
[1729288161926,0.5993,2645.2,2644.8,0.84328443]
[1729288162325,2.18498503,2645.2,2644.8,0.84328443]
[1729288166556,2.18498503,2645.2,2645.1,3.0]
[1729288166867,0.95352926,2645.2,2644.8,0.84328443]
[1729288167066,2.18498503,2645.2,2644.8,0.84328443]
[1729288168731,0.22634237,2645.1,2644.8,0.84328443]
[1729288169039,1.41655403,2645.1,2644.8,0.84328443]
[1729288170067,0.79347589,2645.0,2644.8,0.84328443]
[1729288186103,0.79347589,2645.1,2644.8,0.84328443]
[1729288186309,0.79347589,2645.0,2644.8,0.84328443]
[1729288191005,0.05871106,2644.9,2644.8,0.84328443]
[1729288201719,0.05871106,2644.9,2644.8,0.55]
[1729288201925,1.45148695,2644.9,2644.7,0.55]
[1729288203219,0.65801106,2644.9,2644.7,0.55]
[1729288203998,1.45148695,2644.9,2644.7,0.55]
[1729288204912,0.65801106,2644.9,2644.7,0.55]
[1729288205118,1.45148695,2644.9,2644.7,0.55]
[1729288206021,0.65801106,2644.9,2644.7,0.55]
[1729288206398,1.45148695,2644.9,2644.7,0.55]
[1729288206811,0.85218695,2644.9,2644.7,0.55]
[1729288207034,0.85218695,2644.9,2644.6,0.55]
[1729288208022,0.05871106,2644.9,2644.6,0.55]
[1729288208387,0.85218695,2644.9,2644.6,0.55]
[1729288208588,1.45148695,2644.9,2644.6,0.55]
[1729288208847,0.65801106,2644.9,2644.6,0.55]
[1729288209323,1.45148695,2644.9,2644.6,0.55]
[1729288211219,0.65801106,2644.9,2644.6,0.55]
[1729288211425,1.45148695,2644.9,2644.6,0.55]
[1729288215239,0.65801106,2644.9,2644.6,0.55]
[1729288217133,1.45148695,2644.9,2644.6,0.55]
[1729288217493,0.65801106,2644.9,2644.6,0.55]
[1729288218820,1.45148695,2644.9,2644.6,0.55]
[1729288219341,0.65801106,2644.9,2644.6,0.55]
[1729288224841,1.45148695,2644.9,2644.6,0.55]
[1729288227940,0.65801106,2644.9,2644.6,0.55]
[1729288228537,1.45148695,2644.9,2644.6,0.55]
[1729288229638,0.05148695,2644.9,2644.6,0.55]
[1729288230743,1.58568503,2645.2,2644.6,0.55]
[1729288230902,0.35688549,2645.1,2644.6,0.55]
[1729288236662,1.58568503,2645.2,2644.6,0.55]
[1729288239744,1.19004408,2645.1,2644.6,0.55]
[1729288239918,1.19004408,2645.0,2644.6,0.55]
[1729288240114,1.19004408,2645.1,2644.6,0.55]
[1729288240531,1.19004408,2645.0,2644.6,0.55]
[1729288240732,0.79339109,2644.9,2644.6,0.55]
[1729288249960,0.79339109,2644.8,2644.6,0.55]
[1729288250882,0.79339109,2644.9,2644.6,0.55]
[1729288251643,0.79339109,2644.8,2644.6,0.55]
[1729288251844,0.79339109,2644.9,2644.6,0.55]
[1729288252472,0.79339109,2644.8,2644.6,0.55]
[1729288252646,0.79339109,2644.9,2644.6,0.55]
[1729288252849,1.19004408,2645.0,2644.6,0.55]
[1729288252850,0.79339109,2644.8,2644.6,0.55]
[1729288253057,0.79339109,2644.9,2644.6,0.55]
[1729288256989,0.79339109,2644.8,2644.6,0.55]
[1729288257292,0.79339109,2644.9,2644.6,0.55]
[1729288257586,0.79339109,2644.8,2644.6,0.55]
[1729288258864,0.99173461,2644.8,2644.6,0.55]
[1729288259070,0.99173461,2644.8,2644.4,0.55]
[1729288277105,0.79339109,2644.7,2644.4,0.55]
[1729288277408,0.99173461,2644.8,2644.4,0.55]
[1729288279823,0.79339109,2644.7,2644.4,0.55]
[1729288280022,0.99173461,2644.8,2644.4,0.55]
[1729288281128,0.09490828,2644.7,2644.4,0.55]
[1729288282523,0.88829937,2644.7,2644.4,0.55]
[1729288282686,0.09490828,2644.7,2644.4,0.55]
[1729288286730,1.11596807,2644.7,2643.8,0.7804]
[1729288286927,1.11596807,2644.7,2644.1,0.55]
[1729288287439,0.79339109,2644.6,2644.1,0.55]
[1729288287615,0.79339109,2644.5,2644.1,0.55]
[1729288291945,0.79339109,2644.5,2644.0,0.55]
[1729288292239,0.19834352,2644.4,2644.0,0.55]
[1729288293151,0.99173461,2644.4,2644.0,0.55]
[1729288294004,0.19834352,2644.4,2644.0,0.55]
[1729288294202,0.99173461,2644.4,2644.0,0.55]
[1729288294836,0.99173461,2644.4,2643.9,0.58674451]
[1729288295248,0.21817787,2644.3,2643.9,0.58674451]
[1729288295547,0.79339109,2644.4,2643.9,0.58674451]
[1729288296045,0.79339109,2644.5,2643.9,0.58674451]
[1729288299404,0.79339109,2644.4,2643.9,0.58674451]
[1729288300524,0.79339109,2644.3,2643.9,0.58674451]
[1729288304039,0.79339109,2644.4,2643.9,0.58674451]
[1729288304239,0.19834352,2644.3,2643.9,0.58674451]
[1729288316341,0.99173461,2644.3,2643.9,0.58674451]
[1729288317281,0.79339109,2644.2,2643.9,0.58674451]
[1729288318849,1.3883876,2644.3,2643.9,0.58674451]
[1729288318850,0.79339109,2644.1,2643.9,0.58674451]
[1729288327304,1.58568503,2644.1,2643.2,0.02265699]
[1729288327458,0.79144235,2643.8,2643.1,0.8195]
[1729288327662,0.79144235,2643.7,2643.1,0.8195]
[1729288328261,0.98930294,2643.6,2643.1,0.8195]
[1729288328498,0.79144235,2643.5,2643.1,0.8195]
[1729288330265,0.98930294,2643.6,2642.5,1.3695]
[1729288330506,0.79144235,2643.4,2642.5,0.8195]
[1729288330664,0.79144235,2643.4,2642.8,3.0]
[1729288330865,0.19786059,2643.3,2642.8,3.0]
[1729288331092,0.19786059,2643.3,2642.5,0.8195]
[1729288332137,0.98930294,2643.3,2642.5,0.8195]
[1729288332425,0.79144235,2643.2,2642.5,0.8195]
[1729288332608,0.98930294,2643.3,2642.5,0.8195]
[1729288332807,1.009089,2643.2,2642.5,0.8195]
[1729288333199,0.21764665,2643.2,2642.5,0.8195]
[1729288335113,1.009089,2643.2,2642.5,0.8195]
[1729288335319,0.21764665,2643.2,2642.5,0.8195]
[1729288335628,0.21764665,2643.2,2642.4,0.29664952]
[1729288335982,1.009089,2643.2,2642.4,0.29664952]
[1729288336319,0.21962525,2643.1,2642.4,0.29664952]
[1729288336484,1.009089,2643.2,2642.4,0.29664952]
[1729288338781,0.21764665,2643.2,2642.4,0.29664952]
[1729288338982,1.009089,2643.2,2642.4,0.29664952]
[1729288339277,0.21764665,2643.2,2642.4,0.29664952]
[1729288339483,1.009089,2643.2,2642.4,0.29664952]
[1729288339786,0.21962525,2643.1,2642.4,0.29664952]
[1729288340503,0.79144235,2643.2,2642.4,0.29664952]
[1729288341305,0.79144235,2643.2,2642.4,3.29664952]
[1729288341509,0.79144235,2643.2,2642.4,0.29664952]
[1729288341820,0.79144235,2643.2,2642.4,3.29664952]
[1729288342121,0.79144235,2643.2,2642.4,0.29664952]
[1729288342424,0.19786059,2643.1,2642.4,0.29664952]
[1729288342580,0.79144235,2643.3,2642.4,0.29664952]
[1729288343030,0.79144235,2643.0,2641.8,0.8195]
[1729288343623,0.79144235,2642.9,2641.8,0.8195]
[1729288344435,0.79144235,2643.0,2641.8,0.8195]
[1729288344766,0.19786059,2642.9,2641.8,0.8195]
[1729288345629,0.79144235,2643.0,2641.8,0.8195]
[1729288346284,0.79144235,2643.1,2641.8,0.8195]
[1729288346964,1.64814817,2643.0,2641.8,0.8195]
[1729288347191,1.64814817,2642.6,2641.3,0.8195]
[1729288347465,2.43959052,2642.6,2641.3,0.8195]
[1729288347764,0.62236005,2642.5,2641.3,0.8195]
[1729288348567,0.55,2641.8,2640.4,0.761]
[1729288348720,1.64814817,2641.8,2640.4,0.761]
[1729288349157,1.64814817,2641.6,2640.4,0.761]
[1729288350169,0.2041572,2641.5,2640.4,0.761]
[1729288350626,0.2041572,2641.5,2640.5,3.0779289]
[1729288352241,0.2041572,2641.5,2640.5,0.0779289]
[1729288352959,0.55,2641.6,2640.5,0.0779289]
[1729288354835,4.33558,2641.6,2640.5,0.0779289]
[1729288355042,5.98372817,2641.6,2640.5,0.0779289]
[1729288355241,0.55,2641.6,2640.5,0.0779289]
[1729288355442,1.64814817,2641.5,2640.5,0.0779289]
[1729288355682,0.21981482,2641.4,2640.5,0.0779289]
[1729288356987,0.55,2641.6,2640.5,0.0779289]
[1729288357885,2.19814817,2641.6,2640.5,0.0779289]
[1729288358383,0.55,2641.6,2640.5,0.0779289]
[1729288359670,1.64814817,2641.5,2640.5,0.0779289]
[1729288360260,0.39362677,2641.4,2640.5,0.0779289]
[1729288360469,0.20417749,2641.3,2640.5,0.0779289]
[1729288361835,0.39362677,2641.4,2640.5,0.0779289]
[1729288362789,0.55,2641.3,2640.5,0.0779289]
[1729288363452,2.19814817,2641.3,2640.5,0.0779289]
[1729288364262,0.55,2641.1,2640.5,0.0779289]
[1729288364876,2.19814817,2641.1,2640.5,0.0779289]
[1729288365083,0.59842982,2641.0,2640.5,0.0779289]
[1729288366902,0.55,2640.9,2640.5,0.0779289]
[1729288369970,0.55,2640.7,2640.5,0.0779289]
[1729288370165,2.19814817,2640.7,2640.5,0.0779289]
[1729288370656,2.59186657,2640.7,2640.5,0.0779289]
[1729288370857,0.63786666,2640.6,2640.5,0.0779289]
[1729288371054,1.18786666,2640.6,2640.5,0.0779289]
[1729288371361,5.83930658,2640.6,2640.5,0.0779289]
[1729288371870,9.62631658,2640.6,2640.5,0.0779289]
[1729288372373,15.92261292,2640.6,2640.5,1e-08]
[1729288372574,0.55,2640.0,2639.3,0.8058]
[1729288372794,3.978,2639.9,2639.3,0.8058]
[1729288372999,4.7417,2639.8,2637.9,0.1282345]
[1729288373304,15.23631,2639.7,2637.9,0.1282345]
[1729288373462,2.41184817,2639.4,2637.9,0.1282345]
[1729288373656,2.41184817,2639.4,2637.9,0.0782345]
[1729288373900,0.7637,2639.4,2637.9,0.0782345]
[1729288374260,4.7417,2639.4,2637.9,0.0782345]
[1729288375107,0.11,2639.0,2637.9,0.0782345]
[1729288375303,0.11,2639.0,2635.5,2.7430964]
[1729288375304,0.7637,2637.9,2635.3,0.1282345]
[1729288375485,4.7417,2637.9,2635.3,0.1282345]
[1729288375782,4.7417,2637.9,2635.3,0.5224101]
[1729288375996,4.7417,2637.9,2635.4,0.8058]
[1729288376204,3.79171,2637.4,2635.4,0.8058]
[1729288376506,5.10578,2637.1,2635.4,0.8058]
[1729288376708,1.3137,2637.1,2635.4,0.8058]
[1729288377084,0.7637,2637.1,2635.4,0.8058]
[1729288377307,1.34422129,2637.5,2635.5,0.8058]
[1729288377472,1.34422129,2637.5,2636.4,3.0]
[1729288377676,0.7637,2637.9,2636.6,3.0]
[1729288377916,0.7637,2637.9,2636.5,0.8058]
[1729288378277,0.7637,2637.9,2636.7,3.0]
[1729288378484,0.7637,2637.9,2636.5,0.8058]
[1729288378485,0.59323768,2637.6,2636.5,0.8058]
[1729288379188,0.59323768,2637.6,2636.9,0.8058]
[1729288379580,0.59323768,2637.6,2637.0,3.0]
[1729288379805,0.59323768,2637.6,2637.0,0.38058]
[1729288379973,0.59323768,2637.6,2636.9,0.8058]
[1729288380427,0.59323768,2637.6,2637.1,3.0]
[1729288380592,0.59323768,2637.6,2636.9,0.8058]
[1729288381113,1.15790429,2638.3,2636.9,0.8058]
[1729288381325,0.59315686,2638.0,2636.9,0.8058]
[1729288382118,0.59315686,2638.0,2636.5,3.0]
[1729288382119,0.59315686,2638.0,2637.1,0.8058]
[1729288382322,1.15788194,2638.7,2637.1,0.8058]
[1729288382523,0.5931231,2638.4,2637.1,0.8058]
[1729288383627,1.15788194,2638.7,2637.1,0.8058]
[1729288386596,8.62788194,2638.7,2637.1,0.8058]
[1729288386929,0.86278819,2638.6,2637.1,0.8058]
[1729288389217,0.86278819,2638.6,2637.3,0.8091]
[1729288390682,0.86278819,2638.6,2637.5,0.8091]
[1729288391384,7.47,2639.0,2637.8,0.55]
[1729288391694,7.47,2639.0,2637.9,0.8091]
[1729288391892,7.47,2639.0,2638.0,0.55]
[1729288392942,7.47,2639.0,2637.9,0.8091]
[1729288393569,7.47,2639.0,2638.1,0.8091]
[1729288393841,0.0226804,2639.5,2638.1,0.8091]
[1729288393842,0.747,2638.9,2638.1,0.8091]
[1729288394145,7.4926804,2639.5,2638.1,0.8091]
[1729288394346,7.47,2639.5,2638.1,0.8091]
[1729288396338,7.47,2639.5,2638.3,0.8091]
[1729288397151,7.47,2639.5,2638.1,0.8091]
[1729288397455,0.747,2639.4,2638.2,0.55]
[1729288397652,0.747,2639.4,2638.3,0.8091]
[1729288398180,0.747,2639.4,2638.2,0.55]
[1729288398181,0.747,2639.4,2638.5,0.8091]
[1729288401574,20.7319,2640.0,2638.5,0.8091]
[1729288401776,8.2519,2640.0,2638.5,0.8091]
[1729288405681,8.2519,2640.0,2638.7,0.8091]
[1729288406956,8.2519,2640.0,2638.8,0.55]
[1729288407152,0.82519,2640.0,2639.0,0.55]
[1729288407413,0.7819,2640.3,2639.0,0.55]
[1729288410355,0.7819,2640.3,2638.9,0.7614]
[1729288410561,0.7819,2640.3,2639.0,0.55]
[1729288411842,0.7819,2640.3,2638.9,0.7614]
[1729288412037,0.7819,2640.3,2639.1,0.7614]
[1729288412607,0.7819,2640.3,2638.8,0.7614]
[1729288413319,0.7819,2640.3,2638.7,3.0]
[1729288413618,0.7819,2640.3,2638.7,3.93480974]
[1729288413817,4.7599,2640.3,2638.7,0.93480974]
[1729288414004,0.7844,2640.1,2638.3,7.29]
[1729288414227,0.7844,2639.9,2638.3,7.29]
[1729288415038,0.7844,2639.9,2638.1,0.7614]
[1729288416299,0.7844,2639.9,2638.2,0.55]
[1729288416505,12.04931235,2640.0,2638.2,0.55]
[1729288416506,0.7844,2639.7,2638.2,0.55]
[1729288420858,0.7844,2639.7,2638.1,0.7614]
[1729288423294,0.7844,2639.6,2638.1,0.7614]
[1729288423684,0.7844,2639.5,2638.1,0.7614]
[1729288428801,0.7844,2639.5,2638.0,3.0]
[1729288429005,0.8058,2639.3,2638.1,1.579]
[1729288430982,0.8058,2639.3,2638.2,0.7508]
[1729288432279,1.59724235,2639.3,2638.2,0.7508]
[1729288434008,0.7643,2639.2,2638.2,0.7508]
[1729288434171,1.12904901,2639.2,2638.2,0.7508]
[1729288434368,1.92049136,2639.2,2638.2,0.7508]